fUSD/lending_fUSD_20240704
["ID","MTS","AMOUNT","RATE_DAILY","PERIOD"]
[331102734,1720083038685,-150.0,0.00013909,2]
[331102736,1720083038695,-150.0,0.00013912,2]
[331102738,1720083038705,-150.0,0.00013916,2]
[331102740,1720083038715,-150.0,0.00013917,2]
[331102742,1720083038726,-150.0,0.00013922,2]
[331102744,1720083038736,-150.0,0.00013923,2]
[331102746,1720083038746,-150.0,0.00013928,2]
[331102748,1720083038755,-150.0,0.00013939,2]
[331102750,1720083038766,-150.0,0.00013942,2]
[331102752,1720083038776,-150.0,0.00013942,2]
[331102754,1720083038789,-150.0,0.00013943,2]
[331102757,1720083038802,-150.0,0.00013946,2]
[331102759,1720083038813,-150.0,0.00013951,2]
[331102760,1720083038823,-150.0,0.00013951,2]
[331102762,1720083038833,-150.0,0.00013963,2]
[331102764,1720083038847,-150.0,0.00013967,2]
[331102766,1720083038858,-150.0,0.00013982,2]
[331102768,1720083038867,-150.0,0.00013986,2]
[331102770,1720083038878,-150.0,0.00013989,2]
[331102772,1720083038889,-14575.548185,0.00013989,2]
[331102774,1720083038899,-6767.6035376,0.00013989,2]
[331102776,1720083038908,-129338.6531238,0.00013989,2]
[331102777,1720083038920,-230.2942155,0.00013989,2]
[331102779,1720083038930,-241.49560116,0.00013989,2]
[331102781,1720083038940,-150.0,0.00013994,2]
[331102783,1720083038950,-353.47891664,0.00013997,2]
[331102785,1720083038960,-278.05742408,0.00013999,2]
[331102787,1720083038970,-1547.39498095,0.00013999,2]
[331102789,1720083038981,-209.83691586,0.00013999,2]
[331102791,1720083038991,-470.12558543,0.00013999,2]
[331102793,1720083039001,-542.71595093,0.00013999,2]
[331102795,1720083039012,-548240.11683372,0.00013999,2]
[331102797,1720083039023,-5922.04166492,0.00013999,2]
[331102799,1720083039034,-208.23342565,0.00013999,2]
[331102801,1720083039048,-150.0,0.00013999,2]
[331102803,1720083039058,-150.0,0.00013999,7]
[331102805,1720083039069,-86525.44960454,0.00014,2]
[331102807,1720083039084,-2401.64453317,0.00014,2]
[331102810,1720083039097,-315.5,0.00014,2]
[331102812,1720083039110,-575.0,0.00014,2]
[331102814,1720083039122,-114026.0628407,0.00014,2]
[331102816,1720083039136,-6836.41652536,0.00014,2]
[331102820,1720083039169,-544.91089091,0.00014,2]
[331102823,1720083039182,-315.61835942,0.00014,2]
[331102825,1720083039194,-727.54121894,0.00014,2]
[331102827,1720083039207,-3335.42372813,0.00014,2]
[331102829,1720083039220,-19011.18941974,0.00014,2]
[331102831,1720083039232,-503.12178618,0.00014,2]
[331102834,1720083039245,-1608.89999998,0.00014,2]
[331102836,1720083039258,-1592.65686539,0.00014,2]
[331102839,1720083039276,-48162.45389695,0.00014,2]
[331102910,1720083039933,-11553.6,0.00014,2]
[331102912,1720083039947,-1356.0,0.00014,2]
[331102915,1720083039960,-579.51438,0.00014,2]
[331102917,1720083039973,-580.63263329,0.00014,2]
[331102919,1720083039987,-674.77624646,0.00014,2]
[331102923,1720083040021,-2078.47176684,0.00014,2]
[331102926,1720083040034,-302.97328852,0.00014,2]
[331102928,1720083040051,-2677.16867706,0.00014,2]
[331102930,1720083040064,-31627.984179,0.00014,2]
[331102933,1720083040078,-948.96934682,0.00014,2]
[331102937,1720083040107,-63053.15654989,0.00014,2]
[331102939,1720083040120,-439.015,0.00014,2]
[331102946,1720083040188,-489.17891229,0.00014,2]
[331102949,1720083040202,-2109.04654924,0.00014,2]
[331102951,1720083040214,-64450.39897491,0.00014,2]
[331102953,1720083040226,-1359.13066915,0.00014,2]
[331103049,1720083041332,-4111.22190836,0.00014,2]
[331103051,1720083041344,-1276.65598765,0.00014,2]
[331103058,1720083041406,-1438.4257,0.00014,2]
[331103061,1720083041418,-1217.89072931,0.00014,2]
[331103063,1720083041430,-725.78261221,0.00014,2]
[331103208,1720083042664,-209.83691586,0.00013999,2]
[331103210,1720083042674,-279943.93676662,0.00014,2]
[331103212,1720083042685,-460.92343831,0.00014,2]
[331103214,1720083042695,-604455.91470844,0.00014,2]
[331103216,1720083042707,-30072.30325889,0.00014,2]
[331103218,1720083042719,-1205.0,0.00014,2]
[331103224,1720083042764,-1377.53454,0.00014,2]
[331103226,1720083042775,-704.03333,0.00014,2]
[331103228,1720083042787,-882.42760794,0.00014,2]
[331103231,1720083042800,-3992.50836156,0.00014,2]
[331103233,1720083042812,-51272.91140328,0.00014,2]
[331103236,1720083042833,-8479.63585047,0.00014,2]
[331103238,1720083042848,-771.4233036,0.00014,2]
[331103241,1720083042869,-4807.07070973,0.00014,2]
[331103243,1720083042881,-684.85547295,0.00014,2]
[331103246,1720083042893,-358.65409331,0.00014,2]
[331103248,1720083042905,-4785.13275,0.00014,2]
[331103638,1720083046976,-500.0,0.000137,2]
[331103640,1720083046986,-1535.30092519,0.00013999,2]
[331103642,1720083046996,-210.18261467,0.00013999,2]
[331103644,1720083047005,-482002.81001885,0.00014,2]
[331103647,1720083047016,-1719.79999999,0.00014,2]
[331103649,1720083047027,-1509.72176309,0.00014,2]
[331103651,1720083047038,-480.22073266,0.00014,2]
[331103654,1720083047064,-940.63593061,0.00014,2]
[331103671,1720083047208,-1841.3160107,0.00014,2]
[331103673,1720083047219,-5048.82980271,0.00014,2]
[331103676,1720083047239,-56255.76651426,0.00014,2]
[331103678,1720083047251,-792.70000001,0.00014,2]
[331103680,1720083047262,-3172.0017799,0.00014,2]
[331103683,1720083047277,-5776.48311932,0.00014,2]
[331103740,1720083047737,-341.43669627,0.00014,2]
[331103743,1720083047929,-866.95862726,0.00014,2]
[331104143,1720083055930,209.7986185,0.00011199,2]
[331104146,1720083129647,792.24,0.00012078,2]
[331104147,1720083151777,150.5,0.0001399,30]
[331104148,1720083151804,150.5,0.0001399,30]
[331104149,1720083152106,150.5,0.0001398,30]
[331104150,1720083152136,153.99,0.0001398,30]
[331104151,1720083152384,150.5,0.0001397,30]
[331104154,1720083241056,464.22,0.00010959,2]
[331104157,1720083272333,150.5,0.0001399,30]
[331104158,1720083272802,150.5,0.0001398,30]
[331104159,1720083273300,150.5,0.0001397,30]
[331104162,1720083392380,243.0,0.0001399,30]
[331104166,1720083543733,-191.26900474,0.00015,15]
[331104167,1720083543762,-1000.0,0.000159,5]
[331104168,1720083543789,-11483.0,0.000164,5]
[331104169,1720083543823,-154.2,0.00018849,30]
[331104170,1720083543848,-501.2247809,0.000192,7]
[331104171,1720083543875,-5587.0040499,0.0002,7]
[331104172,1720083543927,-322.09176541,0.0002067,7]
[331104173,1720083543967,-1000.0,0.000209,7]
[331104174,1720083543991,-65386.34675685,0.00021,5]
[331104175,1720083544033,-6005.0,0.00021463,7]
[331104176,1720083544058,-631480.02,0.000215,5]
[331104177,1720083544094,-1000.0,0.000219,7]
[331104178,1720083544118,-162.84481227,0.00021917,5]
[331104179,1720083544266,-215.16684626,0.00021917,5]
[331104180,1720083544503,-778.0,0.00022,10]
[331104181,1720083544526,-250.0,0.00022,30]
[331104182,1720083544548,-221.2569826,0.00022,30]
[331104183,1720083544573,-150.0,0.00022094,10]
[331104184,1720083544601,-778.0,0.000225,10]
[331104185,1720083544625,-15115.12,0.000227,5]
[331104186,1720083544649,-1000.0,0.000227,8]
[331104187,1720083544674,-1554.0,0.000228,8]
[331104188,1720083544698,-1200.0,0.00022897,14]
[331104189,1720083544720,-1500.0,0.000229,14]
[331104190,1720083544745,-238.36,0.000229,31]
[331104191,1720083544771,-51850.12685026,0.0002299,5]
[331104192,1720083544794,-689400.14022448,0.0002299,5]
[331104193,1720083544818,-511476.82792633,0.0002299,5]
[331104194,1720083555866,-11483.0,0.000163,5]
[331104195,1720083556266,-1988517.0,0.0002299,5]
[331104197,1720083583716,-1900.0,0.00023,8]
[331104198,1720083583741,-320.0,0.00023,10]
[331104199,1720083583765,-5000.0,0.00023,14]
[331104200,1720083583789,-20035.0,0.00023,10]
[331104201,1720083583813,-778.0,0.00023,11]
[331104202,1720083583841,-778.0,0.000235,11]
[331104203,1720083583865,-500.0,0.00023508,7]
[331104204,1720083583893,-500.0,0.00023781,7]
[331104205,1720083583919,-154.2,0.00023831,30]
[331104206,1720083583944,-20092.0,0.00024,14]
[331104207,1720083583969,-1000.0,0.00024,12]
[331104208,1720083583992,-778.0,0.00024,12]
[331104209,1720083584016,-500.0,0.00024055,7]
[331104210,1720083584045,-197.0,0.0002425,8]
[331104211,1720083584070,-500.0,0.00024328,7]
[331104212,1720083584096,-778.0,0.000245,12]
[331104213,1720083584120,-556.41,0.00024601,7]
[331104214,1720083584144,-760.59,0.00024657,7]
[331104215,1720083584169,-760.59,0.00024657,7]
[331104216,1720083584193,-760.59,0.00024657,7]
[331104217,1720083584219,-760.59,0.00024657,7]
[331104218,1720083584242,-760.59,0.00024657,7]
[331104219,1720083584265,-760.59,0.00024657,7]
[331104220,1720083584290,-760.59,0.00024657,7]
[331104221,1720083584315,-760.59,0.00024657,7]
[331104222,1720083584339,-760.59,0.00024657,7]
[331104223,1720083584365,-760.59,0.00024657,7]
[331104224,1720083584389,-760.59,0.00024657,7]
[331104225,1720083584413,-760.59,0.00024657,7]
[331104226,1720083584438,-760.59,0.00024657,7]
[331104227,1720083584462,-760.59,0.00024657,7]
[331104228,1720083584485,-760.59,0.00024657,7]
[331104229,1720083584510,-760.59,0.00024657,7]
[331104230,1720083584532,-760.59,0.00024657,7]
[331104231,1720083584558,-760.59,0.00024657,7]
[331104232,1720083584581,-760.59,0.00024657,7]
[331104233,1720083584605,-760.59,0.00024657,7]
[331104234,1720083584631,-760.59,0.00024657,7]
[331104235,1720083584657,-760.59,0.00024657,7]
[331104236,1720083584682,-760.59,0.00024657,7]
[331104237,1720083584706,-760.59544688,0.00024657,7]
[331104238,1720083584730,-515.425833,0.00024658,7]
[331104239,1720083584756,-515.425833,0.00024658,7]
[331104240,1720083584780,-515.425833,0.00024658,7]
[331104241,1720083584804,-515.425833,0.00024658,7]
[331104242,1720083584826,-515.425833,0.00024658,7]
[331104243,1720083584850,-515.425833,0.00024658,7]
[331104244,1720083584875,-515.425833,0.00024658,7]
[331104245,1720083584902,-515.425833,0.00024658,7]
[331104246,1720083584926,-515.425833,0.00024658,7]
[331104247,1720083584950,-515.425833,0.00024658,7]
[331104248,1720083584974,-515.425833,0.00024658,7]
[331104249,1720083584997,-515.425833,0.00024658,7]
[331104250,1720083585025,-515.425833,0.00024658,7]
[331104251,1720083585049,-515.425833,0.00024658,7]
[331104252,1720083585073,-515.425833,0.00024658,7]
[331104253,1720083585097,-515.425833,0.00024658,7]
[331104254,1720083585121,-515.425833,0.00024658,7]
[331104255,1720083585143,-515.425833,0.00024658,7]
[331104256,1720083585170,-515.425833,0.00024658,7]
[331104257,1720083585191,-515.425831,0.00024658,7]
[331104258,1720083585218,-27178.34975556,0.00025,7]
[331104259,1720083585242,-500.0,0.00025,7]
[331104260,1720083585266,-522.47,0.00025,7]
[331104261,1720083585289,-571.77,0.00025,14]
[331104262,1720083585312,-71587.02703773,0.00025,7]
[331104263,1720083585335,-200.0,0.00025,10]
[331104264,1720083585357,-200.0,0.00025,10]
[331104265,1720083585380,-196.91533094,0.00025,7]
[331104266,1720083585404,-1283.40445541,0.00025,30]
[331104267,1720083585427,-900.0,0.00025,26]
[331104268,1720083585450,-923.15199124,0.00025,30]
[331104269,1720083585473,-778.0,0.00025,13]
[331104270,1720083585497,-280.0,0.000253,10]
[331104271,1720083585520,-391.0,0.0002545,10]
[331104272,1720083585543,-778.0,0.000255,13]
[331104273,1720083585570,-710.33892006,0.00026,30]
[331104274,1720083585593,-778.0,0.00026,14]
[331104275,1720083585618,-778.0,0.000265,14]
[331104276,1720083585643,-6038.78954881,0.000268,10]
[331104277,1720083585667,-155.0,0.00027,7]
[331104278,1720083585691,-778.0,0.00027,15]
[331104279,1720083585714,-586.16914211,0.0002739,20]
[331104280,1720083585905,-293.08457106,0.0002739,25]
[331104281,1720083585930,-293.08457105,0.0002739,30]
[331104282,1720083585955,-162.53938847,0.00027397,90]
[331104283,1720083585980,-2322.0,0.00027397,8]
[331104284,1720083586003,-200.0,0.00027397,60]
[331104285,1720083586030,-1000.0,0.00027397,13]
[331104286,1720083586054,-1000.0,0.00027397,13]
[331104287,1720083586076,-1000.0,0.00027397,13]
[331104288,1720083586100,-1000.0,0.00027397,13]
[331104289,1720083586121,-1000.0,0.00027397,13]
[331104290,1720083586147,-1000.0,0.00027397,13]
[331104291,1720083586169,-1000.0,0.00027397,13]
[331104292,1720083586191,-1000.0,0.00027397,13]
[331104293,1720083586213,-1000.0,0.00027397,13]
[331104294,1720083586235,-1000.0,0.00027397,13]
[331104295,1720083586261,-1000.0,0.00027397,13]
[331104296,1720083586283,-1000.0,0.00027397,13]
[331104297,1720083586307,-1000.0,0.00027397,13]
[331104298,1720083586329,-1000.0,0.00027397,13]
[331104299,1720083586352,-1000.0,0.00027397,13]
[331104300,1720083586374,-1000.0,0.00027397,13]
[331104301,1720083586397,-1000.0,0.00027397,13]
[331104302,1720083586420,-1000.0,0.00027397,13]
[331104303,1720083586443,-1000.0,0.00027397,13]
[331104304,1720083586465,-1000.0,0.00027397,13]
[331104305,1720083586487,-1000.0,0.00027397,13]
[331104306,1720083586513,-1000.0,0.00027397,13]
[331104307,1720083586535,-1000.0,0.00027397,13]
[331104308,1720083586558,-336.074039,0.00027397,7]
[331104309,1720083586580,-336.074039,0.00027397,7]
[331104310,1720083586604,-336.074039,0.00027397,7]
[331104311,1720083586627,-336.074039,0.00027397,7]
[331104312,1720083586650,-336.074039,0.00027397,7]
[331104313,1720083586674,-336.074039,0.00027397,7]
[331104314,1720083586696,-336.074039,0.00027397,7]
[331104315,1720083586718,-336.074039,0.00027397,7]
[331104316,1720083586742,-336.074039,0.00027397,7]
[331104317,1720083586768,-336.074039,0.00027397,7]
[331104318,1720083586792,-336.074039,0.00027397,7]
[331104319,1720083586815,-336.074039,0.00027397,7]
[331104320,1720083586838,-336.074039,0.00027397,7]
[331104321,1720083586862,-336.074039,0.00027397,7]
[331104322,1720083586887,-336.074039,0.00027397,7]
[331104323,1720083586917,-336.074039,0.00027397,7]
[331104324,1720083586942,-336.074039,0.00027397,7]
[331104325,1720083586966,-336.074039,0.00027397,7]
[331104326,1720083586990,-336.074039,0.00027397,7]
[331104327,1720083587017,-336.074042,0.00027397,7]
[331104328,1720083587043,-1000.0,0.00027397,13]
[331104329,1720083587066,-1000.0,0.00027397,13]
[331104330,1720083587090,-1000.0,0.00027397,13]
[331104331,1720083587117,-1000.0,0.00027397,13]
[331104332,1720083587140,-1000.0,0.00027397,13]
[331104333,1720083587164,-1000.0,0.00027397,13]
[331104334,1720083587188,-456.0,0.00027397,13]
[331104335,1720083587212,-151.0,0.00027397,7]
[331104336,1720083587235,-151.0,0.00027397,7]
[331104337,1720083587260,-199.99065,0.00027397,7]
[331104338,1720083587283,-11330.91,0.00027397,10]
[331104339,1720083587308,-9442.42,0.00027397,10]
[331104340,1720083587333,-778.0,0.000275,16]
[331104341,1720083587358,-153.21854062,0.00027753,30]
[331104342,1720083587381,-391.0,0.0002783,15]
[331104343,1720083587405,-1396141.32644263,0.0002799,10]
[331104344,1720083587428,-3004.4,0.00028,7]
[331104345,1720083587451,-778.0,0.00028,16]
[331104346,1720083587475,-2316.27,0.00028,7]
[331104347,1720083587500,-169.5143749,0.000285,120]
[331104348,1720083587524,-778.0,0.000285,17]
[331104349,1720083587548,-2322.0,0.00028767,10]
[331104350,1720083587574,-154.2,0.00028812,30]
[331104351,1720083587600,-333246.88239153,0.0002893,7]
[331104352,1720083591402,-7868.68,0.00027397,10]
[331104353,1720083591428,-84059.91947686,0.0002893,7]
[331104354,1720083591453,-199540.86956214,0.00029,7]
[331104355,1720083591479,-4480.62954611,0.00029,7]
[331104356,1720083591504,-900.0,0.00029,30]
[331104357,1720083591527,-500.0,0.00029,120]
[331104358,1720083591550,-778.0,0.00029,17]
[331104359,1720083591573,-500.0,0.000295,120]
[331104360,1720083591596,-778.0,0.000295,18]
[331104361,1720083591620,-1763.990905,0.0002978,10]
[331104362,1720083591645,-1000.0,0.000298,10]
[331104363,1720083591669,-1000.0,0.0002982,10]
[331104364,1720083591692,-1000.0,0.0002984,10]
[331104365,1720083591715,-1000.0,0.0002986,10]
[331104366,1720083591739,-1000.0,0.0002988,10]
[331104367,1720083591763,-1000.0,0.000299,10]
[331104368,1720083591787,-1000.0,0.0002992,10]
[331104369,1720083591810,-1000.0,0.0002994,10]
[331104370,1720083591834,-1000.0,0.0002996,10]
[331104371,1720083591858,-1000.0,0.0002998,10]
[331104372,1720083591881,-500.0,0.0003,7]
[331104373,1720083591908,-2000.0,0.0003,7]
[331104374,1720083591931,-5852.30661064,0.0003,7]
[331104375,1720083591955,-2674.48021965,0.0003,7]
[331104376,1720083591978,-196.1880294,0.0003,14]
[331104377,1720083592000,-2000.0,0.0003,14]
[331104378,1720083592028,-26681.30550745,0.0003,30]
[331104379,1720083592052,-900.0,0.0003,31]
[331104380,1720083592076,-500.0,0.0003,120]
[331104381,1720083592101,-268.62724223,0.0003,30]
[331104382,1720083592123,-778.0,0.0003,18]
[331104383,1720083592146,-154.016502,0.0003,14]
[331104384,1720083592168,-154.016502,0.0003,14]
[331104385,1720083592192,-461.585451,0.0003,7]
[331104386,1720083592214,-1000.0,0.0003,11]
[331104387,1720083592237,-2322.0,0.00030136,12]
[331104388,1720083592262,-200.0,0.00030137,60]
[331104389,1720083592285,-151.0,0.00030137,7]
[331104390,1720083592307,-191.96684,0.00030137,7]
[331104391,1720083592330,-500.0,0.000305,120]
[331104392,1720083592354,-778.0,0.000305,19]
[331104393,1720083592377,-548.0,0.00030613,30]
[331104394,1720083592400,-250.0,0.000308,30]
[331104395,1720083592422,-978.51957834,0.00031,7]
[331104396,1720083592618,-900.0,0.00031,32]
[331104397,1720083592644,-500.0,0.00031,120]
[331104398,1720083592669,-778.0,0.00031,19]
[331104399,1720083592694,-604.0,0.00031051,7]
[331104400,1720083592717,-1400.850315,0.0003135,7]
[331104401,1720083592740,-7347.018026,0.0003135,7]
[331104402,1720083592762,-2749.106018,0.0003135,7]
[331104403,1720083592785,-191.0,0.000314,16]
[331104404,1720083592809,-491.0,0.000314,16]
[331104405,1720083592833,-982.0,0.000314,16]
[331104406,1720083592856,-551.08031736,0.000314,30]
[331104407,1720083592898,-779.244843,0.000315,20]
[331104408,1720083592923,-2322.0,0.00031506,14]
[331104409,1720083592947,-500.00000001,0.0003179,20]
[331104410,1720083592971,-1208.0,0.00031837,30]
[331104411,1720083592993,-158.0483395,0.00031918,30]
[331104412,1720083593024,-176.77491886,0.00031918,30]
[331104413,1720083593050,-200.0,0.00032,12]
[331104414,1720083593075,-900.0,0.00032,33]
[331104415,1720083593097,-500.0,0.00032,120]
[331104416,1720083593122,-176.77491886,0.00032055,30]
[331104417,1720083593145,-4470.33428106,0.000321,7]
[331104418,1720083593168,-158.0483395,0.00032137,30]
[331104419,1720083593192,-176.77491886,0.00032192,30]
[331104420,1720083593216,-176.77491886,0.00032329,30]
[331104421,1720083593240,-158.0483395,0.00032356,30]
[331104422,1720083593264,-176.77491886,0.00032466,30]
[331104423,1720083593286,-500.0,0.000325,120]
[331104424,1720083593309,-158.0483395,0.00032548,30]
[331104425,1720083593332,-176.77491886,0.00032603,30]
[331104426,1720083593354,-176.77491886,0.0003274,30]
[331104427,1720083593376,-158.0483395,0.00032767,30]
[331104428,1720083593399,-250.73596401,0.000328,7]
[331104429,1720083593422,-766.43996496,0.00032876,30]
[331104430,1720083593444,-577.02,0.00032876,120]
[331104431,1720083593467,-577.02,0.00032876,120]
[331104432,1720083593488,-577.02,0.00032876,120]
[331104433,1720083593510,-577.02,0.00032876,120]
[331104434,1720083593532,-577.02,0.00032876,120]
[331104435,1720083593554,-577.02,0.00032876,120]
[331104436,1720083593576,-577.02,0.00032876,120]
[331104437,1720083593599,-577.02,0.00032876,120]
[331104438,1720083593621,-577.02,0.00032876,120]
[331104439,1720083593645,-577.02,0.00032876,120]
[331104440,1720083593668,-577.02,0.00032876,120]
[331104441,1720083593690,-577.02,0.00032876,120]
[331104442,1720083593713,-577.02,0.00032876,120]
[331104443,1720083593736,-577.02,0.00032876,120]
[331104444,1720083593761,-577.02,0.00032876,120]
[331104445,1720083593785,-577.02,0.00032876,120]
[331104446,1720083593810,-577.02,0.00032876,120]
[331104447,1720083593834,-577.02,0.00032876,120]
[331104448,1720083593859,-577.02,0.00032876,120]
[331104449,1720083593882,-577.02,0.00032876,120]
[331104450,1720083593909,-577.02,0.00032876,120]
[331104451,1720083593932,-577.02,0.00032876,120]
[331104452,1720083593955,-577.02,0.00032876,120]
[331104453,1720083593979,-577.10264769,0.00032876,120]
[331104454,1720083594006,-500.0,0.00032876,120]
[331104455,1720083594033,-500.0,0.00032876,120]
[331104456,1720083594057,-500.0,0.00032876,120]
[331104457,1720083594080,-190.46844624,0.00032876,120]
[331104458,1720083594106,-2322.0,0.00032876,16]
[331104459,1720083594130,-200.0,0.00032877,60]
[331104460,1720083594154,-176.77491886,0.00032877,30]
[331104461,1720083594175,-500.0,0.00032877,13]
[331104462,1720083594199,-500.0,0.00032877,13]
[331104463,1720083594223,-284.0,0.00032877,13]
[331104464,1720083594247,-158.0483395,0.00032986,30]
[331104465,1720083594276,-900.0,0.00033,34]
[331104466,1720083594300,-500.0,0.00033,120]
[331104467,1720083594325,-176.77491886,0.00033014,30]
[331104468,1720083594351,-176.77491886,0.00033151,30]
[331104469,1720083594376,-1166.55,0.00033151,120]
[331104470,1720083594401,-252.7,0.00033151,120]
[331104471,1720083594426,-158.0483395,0.00033178,30]
[331104472,1720083594451,-176.77491886,0.00033288,30]
[331104473,1720083594476,-158.0483395,0.00033397,30]
[331104474,1720083594501,-176.77491886,0.00033397,30]
[331104475,1720083594526,-500.0,0.000335,120]
[331104476,1720083594550,-176.77491886,0.00033534,30]
[331104477,1720083594576,-158.0483395,0.00033616,30]
[331104478,1720083594600,-176.77491886,0.00033671,30]
[331104479,1720083594625,-768.0,0.00033674,30]
[331104480,1720083594650,-500.0,0.00033697,10]
[331104481,1720083594676,-154.2,0.00033793,30]
[331104482,1720083594702,-158.0483395,0.00033808,30]
[331104483,1720083594726,-176.77491886,0.00033808,30]
[331104484,1720083594752,-6728.24846558,0.00034,7]
[331104485,1720083594776,-10000.0,0.00034,7]
[331104486,1720083594802,-1840.22652717,0.00034,7]
[331104487,1720083594827,-185.47728312,0.00034,7]
[331104488,1720083594852,-500.0,0.00034,120]
[331104489,1720083594876,-11697.0,0.00034089,8]
[331104490,1720083594906,-150.0,0.00034243,120]
[331104491,1720083594932,-2322.0,0.00034246,18]
[331104492,1720083594957,-500.0,0.000345,120]
[331104493,1720083594982,-150.0,0.00034548,10]
[331104494,1720083595008,-500.0,0.00034793,10]
[331104495,1720083595193,-1254.663635,0.0003494,14]
[331104496,1720083595218,-1000.0,0.0003496,14]
[331104497,1720083595244,-1000.0,0.0003498,14]
[331104498,1720083595270,-1000.0,0.00035,7]
[331104499,1720083595294,-1002.21105501,0.00035,7]
[331104500,1720083595317,-3900.0,0.00035,7]
[331104501,1720083595341,-1500.0,0.00035,7]
[331104502,1720083595366,-404.86,0.00035,10]
[331104503,1720083595391,-37448.89904194,0.00035,10]
[331104504,1720083595415,-500.0,0.00035,120]
[331104505,1720083595439,-3240.19232933,0.00035,30]
[331104506,1720083595464,-1571.02627295,0.00035,30]
[331104507,1720083595489,-200.0,0.00035,120]
[331104508,1720083595515,-1000.0,0.00035,14]
[331104509,1720083595541,-1202.06,0.00035,30]
[331104510,1720083595567,-1000.0,0.000353,7]
[331104511,1720083595593,-202.29291476,0.0003549,10]
[331104512,1720083595618,-500.0,0.000355,120]
[331104513,1720083595642,-1000.0,0.000356,7]
[331104514,1720083595670,-2322.0,0.00035616,20]
[331104515,1720083595695,-200.0,0.00035616,60]
[331104516,1720083595721,-500.0,0.00035889,10]
[331104517,1720083595746,-1000.0,0.000359,7]
[331104518,1720083595772,-500.0,0.00036,120]
[331104519,1720083595797,-1000.0,0.000362,7]
[331104520,1720083595823,-2671.54725292,0.00036374,8]
[331104521,1720083595848,-1000.0,0.000365,7]
[331104522,1720083595874,-500.0,0.000365,120]
[331104523,1720083595902,-900.0,0.00036711,10]
[331104524,1720083595927,-1000.0,0.000368,7]
[331104525,1720083595954,-500.0,0.00036985,10]
[331104526,1720083595979,-2322.0,0.00036986,22]
[331104527,1720083596003,-1000.0,0.00037,10]
[331104528,1720083596036,-500.0,0.00037,120]
[331104529,1720083596059,-1075.0,0.00037042,30]
[331104530,1720083596083,-1000.0,0.000371,7]
[331104531,1720083596108,-150.0,0.00037178,120]
[331104532,1720083596133,-900.0,0.00037259,10]
[331104533,1720083596157,-1000.0,0.000374,7]
[331104534,1720083596180,-500.0,0.000375,120]
[331104535,1720083596205,-1000.0,0.000377,7]
[331104536,1720083596230,-900.0,0.00037807,10]
[331104537,1720083596258,-156.86637705,0.00037999,120]
[331104538,1720083596282,-1000.0,0.00038,7]
[331104539,1720083596305,-752.22454616,0.00038,120]
[331104540,1720083596330,-545.49273384,0.00038,120]
[331104541,1720083596355,-543.03021466,0.00038,30]
[331104542,1720083596381,-307.11109778,0.00038,30]
[331104543,1720083596406,-1200.0,0.00038,30]
[331104544,1720083596433,-500.0,0.00038081,10]
[331104545,1720083596459,-500.0,0.00038081,10]
[331104546,1720083596488,-900.0,0.00038355,10]
[331104547,1720083596514,-302.045,0.00038356,7]
[331104548,1720083596540,-2998.2571405,0.00038356,7]
[331104549,1720083596566,-18143.7119816,0.00038356,7]